[Event "44th Chess Olympiad Women 2022"]
[Site "Chennai"]
[Date "2022.08.05"]
[Round "7.35"]
[White "Nassr, Lina"]
[Black "February, Jesse Nikki"]
[Result "1-0"]
[ECO "E14"]
[WhiteElo "2011"]
[BlackElo "1872"]
[Annotator "TA"]
[PlyCount "107"]
[EventDate "2022.07.29"]
[EventType "team-tourn"]
[EventCountry "IND"]
[SourceTitle "playchess.com"]
[Source "ChessBase"]
[SourceQuality "1"]
[WhiteTeam "Algeria"]
[BlackTeam "South Africa"]
[WhiteTeamCountry "ALG"]
[BlackTeamCountry "RSA"]
[TimeControl "40/5400+30:1800+30"]

{[%evp 20,107,21,29,34,28,103,120,142,137,237,167,174,129,110,35,33,31,25,22,116,87,88,64,109,36,92,82,95,72,108,106,116,68,101,68,68,68,68,68,69,69,111,103,109,103,105,100,105,111,111,45,140,135,129,29,91,75,459,148,405,408,367,347,763,747,730,733,703,701,700,631,612,612,606,594,566,562,612,521,600,421,647,635,632,651,674,666,589,582]} 1. c4 {[%emt 0:00:12]} e6 {[%emt 0:00:47]} 2. e3 {[%emt 0:00:28]} Nf6 {[%emt 0:00:26]} 3. Nc3 {[%emt 0:00:30]} d5 {[%emt 0:00:23]} 4. Nf3 {[%emt 0:00:44]} Be7 {[%emt 0:00:57]} 5. d4 {[%emt 0:00:39]} O-O {[%emt 0:00:27]} 6. cxd5 {[%emt 0:00:20]} exd5 {[%emt 0:00:08]} 7. Bd3 {[%emt 0:00:08]} b6 {[%emt 0:04:14]} 8. O-O {[%emt 0:01:52]} Bb7 {[%emt 0:02:25]} 9. b3 {[%emt 0:02:44]} Nbd7 {[%emt 0:02:37]} 10. Bb2 {[%emt 0:01:45]} Ne4 {[%emt 0:03:29]} 11. Rc1 {[%emt 0:00:36]} c5 {[%emt 0:01:33] E14: Queen's Indian: Classical Variation (4 e3).} 12. Ne2 {[%emt 0:12:12] [#]} h5 $146 {[%emt 0:05:21]} (12... Bd6 $11) ({Predecessor:} 12... Re8 13. Ne5 Nxe5 14. dxe5 Bf8 15. f3 Ng5 16. Qc2 h6 17. Ng3 Rc8 18. f4 c4 19. bxc4 dxc4 {0-1 (29) Hoi,C (2386)-Granda Zuniga,J (2699) Helsingor 2016}) 13. Ne5 $16 {[%emt 0:08:02]} Bd6 {[%emt 0:11:12] White is better.} 14. Nf4 {[%emt 0:10:46]} h4 {[%emt 0:07:14]} (14... Ndf6 $16 15. Nxh5 cxd4) 15. Qh5 {[%emt 0:09:24]} Bxe5 {[%emt 0:04:13]} 16. dxe5 {[%emt 0:04:49]} Qg5 {[%emt 0:00:27]} 17. Bxe4 {[%emt 0:04:53] A strong pair of Bishops.} (17. Qxg5 $16 Nxg5 18. Bf5) 17... Qxh5 $14 {[%emt 0:00:14]} 18. Nxh5 $40 {[%emt 0:00:04][%mdl 128] White has some attack.} dxe4 {[%emt 0:00:42]} 19. Rfd1 {[%emt 0:05:22]} Nb8 {[%emt 0:06:27]} (19... Rfd8 $1 $11) 20. e6 {[%emt 0:07:33] White is more active.} fxe6 {[%emt 0:02:21]} 21. Nxg7 {[%emt 0:09:28]} (21. Bxg7 Rf5 22. Rd8+ Kf7 23. Rf8+ Kg6 24. Nf4+ (24. Rxf5 $2 exf5 25. Nf4+ Kxg7 $19) 24... Kxg7 $11) 21... Bd5 {[%emt 0:02:07]} 22. Nh5 {[%emt 0:00:20]} (22. f3 $16 {aiming for fxe4.} exf3 23. gxf3 Bxf3 24. Rd6 (24. Nxe6 Bxd1 25. Nxf8 Bxb3 $11)) 22... Nd7 {[%emt 0:02:41]} (22... Rf5 $1 $14 23. Nf4 (23. Nf6+ Kf7 $11) 23... Nc6) 23. Nf4 $16 {[%emt 0:01:29]} Rf5 {[%emt 0:02:14]} 24. Rd2 {[%emt 0:01:40]} b5 {[%emt 0:06:32]} 25. g4 {[%emt 0:07:03]} hxg3 {[%emt 0:01:29]} 26. hxg3 {[%emt 0:00:15]} ({Better is} 26. fxg3 $16 {g4 is the strong threat.} Kf7 27. Rf1) 26... Kf7 {[%emt 0:03:22]} 27. Kg2 {[%emt 0:00:23]} Rg8 {[%emt 0:01:39]} 28. Rh1 {[%emt 0:03:39]} a5 {[%emt 0:07:36]} 29. Rh7+ {[%emt 0:01:42]} Ke8 {[%emt 0:00:09]} 30. Rd1 {[%emt 0:01:37]} a4 {[%emt 0:03:21]} 31. bxa4 {[%emt 0:02:33]} bxa4 {[%emt 0:01:02]} 32. Bc3 {[%emt 0:00:56]} Kd8 {[%emt 0:03:33]} 33. Rb1 {[%emt 0:01:33]} Kc8 {[%emt 0:00:35]} 34. Rb2 {[%emt 0:00:43]} a3 {[%emt 0:02:07]} 35. Rb5 {[%emt 0:00:22]} (35. Rd2 $16) 35... Bxa2 {[%emt 0:07:08]} (35... Bc4 $14 36. Ra5 e5) 36. Ra5 {[%emt 0:00:10]} e5 {[%emt 0:00:10]} 37. Ra8+ {[%emt 0:00:59]} ({Only move:} 37. Rxa3 $16 Bc4 38. Ra8+ Kc7 39. Bxe5+ $1 Kc6 40. Rxg8 Bxg8 41. Rh6+ Kb5 42. Bh8) 37... Nb8 {[%emt 0:00:17]} (37... Kc7 $11 {keeps the balance.} 38. Ra7+ (38. Rxa3 exf4 39. Ra7+ Kb6 $15) 38... Kb6 39. Rhxd7 (39. Rxa3 exf4 40. Rxa2 fxg3 $11) 39... exf4) 38. Nh3 {[%emt 0:00:48] Strongly threatening Raa7. Chess con chili.} Re8 $2 {[%emt 0:06:45][%mdl 8192] [#]} (38... Bd5 $16 {is more resistant.} 39. Rxa3 Nd7) 39. Rxa3 $2 {[%emt 0:00:21]} (39. Raa7 $1 $18 {[%cal Ra7c7] Intending Rac7+ and mate.} Rf7 40. Rhxf7 Bxf7 41. Rxf7) 39... Bf7 $2 {[%emt 0:00:25][%mdl 8192] This move loses the game for Black.} (39... Bg8 $16 40. Rg7 Rf7) 40. Ra7 $18 {[%emt 0:00:27]} Nd7 {[%emt 0:00:34]} 41. Ba5 {[%emt 0:10:05][%cal Oh3g5] Hoping for Ng5!} Re7 $2 {[%emt 0:08:07]} (41... Rg8 42. Rc7+ Kd8 43. Rxc5+ Ke7) 42. Rc7+ {[%emt 0:08:17] White is clearly winning.} Kb8 {[%emt 0:00:13]} 43. g4 {[%emt 0:00:59]} Rf6 {[%emt 0:02:36]} 44. Ng5 {[%emt 0:01:43]} c4 {[%emt 0:00:23]} 45. Nxf7 {[%emt 0:05:10]} Rexf7 {[%emt 0:02:34]} 46. Rh8+ {[%emt 0:01:51]} Rf8 {[%emt 0:03:02]} 47. Rxf8+ {[%emt 0:00:12]} Nxf8 {[%emt 0:00:07]} 48. Rxc4 {[%emt 0:00:09][%mdl 4096] Endgame KRB-KRN} Nd7 {[%emt 0:02:36]} 49. Rxe4 {[%emt 0:01:07]} Rg6 {[%emt 0:00:44]} 50. Kg3 {[%emt 0:00:49] And now Bc3 would win.} Kb7 {[%emt 0:01:12]} (50... Nf6 $142) 51. Bc3 {[%emt 0:00:54]} Nf6 {[%emt 0:02:07]} 52. Rb4+ {[%emt 0:00:26]} Kc6 {[%emt 0:00:34]} 53. Bxe5 {[%emt 0:00:35]} Kc5 {[%emt 0:00:07]} 54. Rd4 {[%emt 0:00:15] Weighted Error Value: White=0.33/Black=0.58} 1-0

[Event "44th Chess Olympiad Women 2022"]
[Site "Chennai"]
[Date "2022.08.05"]
[Round "7.36"]
[White "Diaz Charpentier, Kristel Meliss"]
[Black "Sara Masood Abdullah"]
[Result "0-1"]
[ECO "A14"]
[WhiteElo "1989"]
[BlackElo "1677"]
[Annotator "TA"]
[PlyCount "92"]
[EventDate "2022.07.29"]
[EventType "team-tourn"]
[EventCountry "IND"]
[SourceTitle "playchess.com"]
[Source "ChessBase"]
[SourceQuality "1"]
[WhiteTeam "Costa Rica"]
[BlackTeam "Iraq"]
[WhiteTeamCountry "CRI"]
[BlackTeamCountry "IRQ"]
[TimeControl "40/5400+30:1800+30"]

{[%evp 9,92,21,46,19,41,45,66,45,54,30,34,-12,-9,-14,-3,-16,0,-12,0,-18,-11,-7,-20,-15,0,0,7,-11,20,-14,-13,-86,-90,-77,-75,-118,-48,-64,-47,-125,-119,-145,-80,-79,-67,-59,-50,-52,-56,-130,-148,-431,-416,-404,-408,-448,-444,-444,-431,-413,-391,-606,-592,-620,-619,-613,-611,-604,-574,-693,-679,-795,-773,-840,-731,-951,-775,-770,-750,-861,-814,-885,-863,-29992,-29993]} 1. Nf3 {[%emt 0:00:13]} Nf6 {[%emt 0:00:09]} 2. c4 {[%emt 0:00:03]} e6 {[%emt 0:00:08]} 3. g3 {[%emt 0:00:11]} d5 {[%emt 0:00:17]} 4. Bg2 {[%emt 0:00:04]} Be7 {[%emt 0:00:27]} 5. O-O {[%emt 0:00:07]} dxc4 {[%emt 0:01:45]} 6. Qa4+ {[%emt 0:00:06] A14: English Opening: 1...e6 with b3 by White.} Bd7 {[%emt 0:01:08][%cal Bc8d7,Bd7c6,Bc6e4][%mdl 32]} 7. Qxc4 {[%emt 0:00:05]} a6 {[%emt 0:00:21]} 8. d4 {[%emt 0:01:52] White is slightly better.} Bc6 {[%emt 0:02:01]} 9. Nc3 {[%emt 0:01:35]} O-O {[%emt 0:01:12]} 10. Rd1 {[%emt 0:00:16]} (10. Qd3 $14 {might be stronger.}) 10... b5 $1 $11 {[%emt 0:02:37][%cal Bb7b5,Bb5b4][%mdl 32]} 11. Qd3 {[%emt 0:09:24]} b4 {[%emt 0:04:11]} 12. Nb1 {[%emt 0:00:10][%cal Bc3b1,Bb1d2,Bd2e4,Be4g5][%mdl 32]} Be4 {[%emt 0:00:45]} 13. Qc4 {[%emt 0:10:43] [#]} Nbd7 $146 {[%emt 0:10:38]} ({Predecessor:} 13... Bd5 14. Qc2 Be4 {½-½ (17) Mhango,B (2049)-Mthunzi,B (2011) Boksburg 2020}) 14. Nbd2 {[%emt 0:04:51]} Bd5 $36 {[%emt 0:09:44][%mdl 2048] White is under pressure.} 15. Qd3 {[%emt 0:08:14]} c5 {[%emt 0:03:32][%cal Bc7c5,Bc5c4][%mdl 32]} 16. e4 {[%emt 0:03:22]} Bb7 {[%emt 0:12:02]} 17. e5 $1 {[%emt 0:02:26]} Nd5 {[%emt 0:01:56]} 18. Ne4 {[%emt 0:00:44]} Qc7 {[%emt 0:08:55]} 19. Neg5 {[%emt 0:12:02][%csl Gg5][%cal Rd3h7] [#]} g6 {[%emt 0:01:43]} 20. Bd2 {[%emt 0:02:06]} (20. Ne4 $11) 20... c4 $17 {[%emt 0:02:17]} 21. Qe4 {[%emt 0:01:11]} Kg7 {[%emt 0:07:49]} 22. Qg4 {[%emt 0:25:24]} Rae8 {[%emt 0:11:12]} (22... Rac8 $17 {Hoping for ...h6.} 23. Rdc1 (23. Qh4 $2 Rh8 $19) 23... h5) 23. Qh3 {[%emt 0:10:58][%csl Gg5][%cal Rh3h7]} h5 {[%emt 0:01:29]} 24. Nh4 {[%emt 0:00:28]} ({Better is} 24. Rac1 $15) 24... c3 {[%emt 0:03:38]} 25. bxc3 {[%emt 0:03:04]} Bxg5 {[%emt 0:01:51]} ({Inferior is} 25... Nxc3 26. Re1 $15) (25... bxc3 $142 26. Nxg6 Bxg5 27. Nxf8 Bxd2 28. Nxd7 Qxd7 29. Qxh5 Bh6 30. Qg4+ (30. Be4 $2 Ne3 $19) 30... Kf8) 26. Bxg5 {[%emt 0:00:07]} Nxc3 {[%emt 0:01:40]} 27. Re1 {[%emt 0:01:13]} Bxg2 {[%emt 0:00:28] Dancing on a razor blade.} 28. Nxg2 {[%emt 0:00:16]} Qc4 {[%emt 0:01:06][%csl LRa2,LRd4]} 29. Nf4 {[%emt 0:01:39]} ({White should try} 29. Qh4 $1 $15) 29... Qxd4 {[%emt 0:05:44]} 30. Nxh5+ $2 {[%emt 0:00:06][%mdl 8192] This move loses the game for White.} (30. Qh4 $17 {is the only way for White.} Kg8 31. Kh1) 30... gxh5 $19 {[%emt 0:00:40]} 31. Qxh5 {[%emt 0:00:01]} Rh8 {[%emt 0:00:14] Inhibits Bh6+.} 32. Bf6+ {[%emt 0:01:26]} Nxf6 {[%emt 0:00:27]} 33. Qg5+ {[%emt 0:00:01]} Kf8 {[%emt 0:01:47]} 34. exf6 {[%emt 0:00:02][%csl Gf6][%cal Rg5g7]} Rh7 {[%emt 0:01:39] Prevents Qg7+.} 35. Re3 {[%emt 0:00:50] [#]} (35. Rac1 $142) 35... Ne2+ $1 {[%emt 0:00:23][%mdl 512]} 36. Rxe2 {[%emt 0:01:55]} (36. Kg2 Qxa1) 36... Qxa1+ {[%emt 0:00:05]} 37. Kg2 {[%emt 0:00:01]} Qd4 {[%emt 0:00:44] Against Re4} 38. Rd2 {[%emt 0:01:08]} Qe4+ {[%emt 0:00:12]} 39. f3 {[%emt 0:00:22]} Qf5 {[%emt 0:00:24]} 40. Qxf5 {[%emt 0:00:46]} exf5 {[%emt 0:00:07]} 41. g4 {[%emt 0:30:01]} Rc8 {[%emt 0:31:18] ...f4 is the strong threat.} 42. g5 {[%emt 0:00:06]} Ke8 {[%emt 0:00:17] Threatens to win with ...f4.} 43. Kg3 {[%emt 0:00:58]} Rc4 {[%emt 0:00:28] White must now prevent ...Rh5.} 44. Re2+ {[%emt 0:00:22]} Kd8 {[%emt 0:00:15]} 45. Re7 {[%emt 0:00:12]} Rch4 {[%emt 0:00:12] ( -> ...f4+)} 46. Rxf7 {[%emt 0:00:00]} f4+ {[%emt 0:00:00] Weighted Error Value: White=0.47/Black=0.13 (very precise)} 0-1

[Event "44th Chess Olympiad Women 2022"]
[Site "Chennai"]
[Date "2022.08.05"]
[Round "7.36"]
[White "Al-Fayyadh, Zainab Asif Abdulah"]
[Black "Hernandez Alvarez, Tania Regla"]
[Result "0-1"]
[ECO "B23"]
[WhiteElo "1749"]
[BlackElo "2058"]
[Annotator "TA"]
[PlyCount "108"]
[EventDate "2022.07.29"]
[EventType "team-tourn"]
[EventCountry "IND"]
[SourceTitle "playchess.com"]
[Source "ChessBase"]
[SourceQuality "1"]
[WhiteTeam "Iraq"]
[BlackTeam "Costa Rica"]
[WhiteTeamCountry "IRQ"]
[BlackTeamCountry "CRI"]
[TimeControl "40/5400+30:1800+30"]

{[%evp 13,108,-10,0,0,0,-51,-32,-42,-12,-19,-17,-74,-41,-72,-87,-93,-62,-77,-47,-150,-147,-221,-225,-212,-213,-407,-409,-448,-450,-451,-443,-450,-443,-491,-499,-5589,-5506,-29987,-1765,-12818,-1977,-29990,-29991,-29992,-29992,-29992,-644,-643,-614,-662,-642,-616,-604,-768,-764,-756,-760,-777,-753,-725,-694,-955,-954,-940,-931,-1168,-1176,-1110,-1112,-1269,-1266,-1223,-1086,-1218,-1217,-1382,-1392,-1382,-1359,-1342,-1361,-1215,-1180,-1284,-1302,-2031,-1979,-29967,-29948,-29983,-29984,-29985,-29985,-29985,-29986,-29986,-29987]} 1. e4 {[%emt 0:00:03]} c5 {[%emt 0:01:18]} 2. Nc3 {[%emt 0:00:08]} Nc6 {[%emt 0:00:10]} 3. f4 {[%emt 0:00:06]} e6 {[%emt 0:00:06]} 4. Nf3 {[%emt 0:00:15]} d5 {[%emt 0:00:26]} 5. Bb5 {[%emt 0:00:39]} Nge7 {[%emt 0:00:13]} 6. O-O {[%emt 0:01:01]} a6 {[%emt 0:01:23]} 7. Bxc6+ {[%emt 0:00:24]} Nxc6 {[%emt 0:00:09]} 8. exd5 {[%emt 0:02:10] B23: Closed Sicilian: Lines without g3.} exd5 {[%emt 0:00:18]} 9. Kh1 {[%emt 0:02:09]} (9. d4 $11) 9... Be7 {[%emt 0:00:19]} (9... d4 $5 {[%cal Rd4c3]} 10. Ne4 Be7 $15) 10. d4 {[%emt 0:08:12] Black is slightly better.} cxd4 {[%emt 0:02:19]} 11. Nxd4 {[%emt 0:00:55]} O-O {[%emt 0:00:08] [#]} 12. Nce2 $146 {[%emt 0:01:22]} (12. Be3 $11) ({Predecessor:} 12. Be3 Bf6 13. Qd2 Re8 14. Rae1 Qd6 15. Nce2 Bd7 16. Ng3 Rxe3 17. Rxe3 Nxd4 18. Rd3 {0-1 (29) Ribeiro,M (1947)-Brito,L (2273) Bairro 2014}) 12... Bf6 {[%emt 0:06:47]} 13. h3 {[%emt 0:08:52]} Re8 {[%emt 0:01:03]} 14. c3 {[%emt 0:00:45]} Qb6 {[%emt 0:02:16]} 15. Nf3 {[%emt 0:01:17]} Bf5 {[%emt 0:03:22]} 16. Qxd5 {[%emt 0:07:10]} ({White should play} 16. Ng3 $15 Be4 17. Qb3) 16... Bxh3 {[%emt 0:06:25] This bishop pair is nice.} ({Stronger than} 16... Rxe2 17. Qxf5 Rd8 18. Ng5 Bxg5 19. Qxg5 $15 (19. fxg5 Ne5 $17)) 17. Ng5 {[%emt 0:09:16]} (17. Ng3 $17 {was worth a try.} Be6 18. Qd3) 17... Bxg5 $19 {[%emt 0:04:58] Active counter play!} 18. fxg5 {[%emt 0:04:51]} Be6 {[%emt 0:00:09]} 19. Qf3 {[%emt 0:10:48]} (19. Qd3) 19... Bc4 {[%emt 0:05:07]} 20. Ng3 {[%emt 0:14:12]} Bxf1 {[%emt 0:06:22]} 21. Qxf1 {[%emt 0:00:12]} Ne5 {[%emt 0:01:24]} 22. b3 {[%emt 0:04:05]} Rad8 {[%emt 0:04:17] Strongly threatening ...Nd3.} 23. Nf5 {[%emt 0:04:04]} Ng4 {[%emt 0:03:58]} 24. Ba3 {[%emt 0:01:25]} (24. Bf4 $142 Qc5 25. Bg3) 24... Qc7 {[%emt 0:11:27][%csl Gg4][%cal Rc7h2] [#]} 25. g3 {[%emt 0:01:11]} g6 {[%emt 0:10:22]} (25... Rd2 $142 26. Qf3 Nf2+ 27. Kh2 Ne4+ 28. Qg2 Rxg2+ 29. Kxg2 Nxg5 30. Be7 Rxe7 31. Nxe7+ Qxe7 32. Kf2 Qe4 33. Rc1 Qf3+ 34. Kg1 Qe2 35. Rf1 Nh3+ 36. Kh1 Qxf1+ 37. Kh2 g5 38. c4 g4 39. c5 Qg1#) 26. Nh6+ {[%emt 0:03:52]} Nxh6 {[%emt 0:00:14]} 27. gxh6 {[%emt 0:00:14]} Qxg3 {[%emt 0:00:05]} 28. Qg2 {[%emt 0:05:33]} Qh4+ {[%emt 0:02:00]} 29. Qh2 {[%emt 0:00:22]} Re4 {[%emt 0:00:58]} (29... Re1+ $142 30. Rxe1 Qxe1+ 31. Qg1 Qe4+ 32. Kh2 Qh4+ 33. Kg2 Qg4+ 34. Kh2 Rd2+ 35. Kh1 Qh5+ 36. Qh2 Qxh2#) 30. Qxh4 {[%emt 0:00:54]} Rxh4+ {[%emt 0:00:10][%mdl 4096] Endgame KRR-KRB} 31. Kg2 {[%emt 0:00:05]} Rxh6 {[%emt 0:00:20]} 32. Re1 {[%emt 0:00:13]} Rh5 {[%emt 0:00:49]} 33. Re7 {[%emt 0:00:24]} Ra5 {[%emt 0:00:20]} 34. Bb4 {[%emt 0:01:58]} Rxa2+ {[%emt 0:00:22]} 35. Kg3 {[%emt 0:00:13]} b6 {[%emt 0:05:12][%cal Bb7b6,Bb6b5][%mdl 32]} 36. Rb7 {[%emt 0:00:42]} b5 {[%emt 0:02:00] Threatens to win with ...Rd3+.} 37. Be7 {[%emt 0:00:58]} Rd3+ {[%emt 0:01:44]} 38. Kf4 {[%emt 0:00:08]} Kg7 {[%emt 0:06:12]} 39. Rb6 {[%emt 0:01:03]} Rf2+ {[%emt 0:01:31]} 40. Ke4 {[%emt 0:00:36]} Rxc3 {[%emt 0:01:03]} 41. Kd4 {[%emt 0:30:21]} Rxb3 {[%emt 0:31:08]} 42. Rxa6 {[%emt 0:05:02]} Rf4+ {[%emt 0:03:11]} 43. Kc5 {[%emt 0:00:30]} Rf5+ {[%emt 0:00:26]} 44. Kd4 {[%emt 0:00:40]} g5 {[%emt 0:04:42][%cal Bg6g5,Bg5g4][%mdl 32]} 45. Ra8 {[%emt 0:01:35]} g4 {[%emt 0:01:29]} 46. Bf8+ {[%emt 0:00:35]} Kg6 {[%emt 0:00:16]} 47. Be7 {[%emt 0:00:39]} g3 {[%emt 0:03:02] [#] aiming for ...Rf2.} 48. Rg8+ {[%emt 0:00:20]} Kh5 {[%emt 0:00:10] ...Rbf3 is the strong threat.} 49. Ke4 {[%emt 0:00:36]} Rbf3 {[%emt 0:00:43] ( -> ...R3f4+)} 50. Rg7 {[%emt 0:00:00]} R3f4+ {[%emt 0:00:00] Black mates.} 51. Ke3 {[%emt 0:00:00]} Rg4 {[%emt 0:00:00]} 52. Rxh7+ {[%emt 0:00:00]} Kg6 {[%emt 0:00:00]} 53. Rh8 {[%emt 0:00:00]} Kg7 {[%emt 0:00:00]} 54. Rh1 {[%emt 0:00:00]} g2 {[%emt 0:00:00] White did not feel at home in the position after the opening.  Weighted Error Value: White=1.00/Black=0.57} 0-1

[Event "44th Chess Olympiad Women 2022"]
[Site "Chennai"]
[Date "2022.08.05"]
[Round "7.37"]
[White "Noshin, Anjum"]
[Black "Ahmad Murad, Fatema Alzahraa."]
[Result "1-0"]
[ECO "C18"]
[WhiteElo "2027"]
[BlackElo "1791"]
[Annotator "TA"]
[PlyCount "135"]
[EventDate "2022.07.29"]
[EventType "team-tourn"]
[EventCountry "IND"]
[SourceTitle "playchess.com"]
[Source "ChessBase"]
[SourceQuality "1"]
[WhiteTeam "Bangladesh"]
[BlackTeam "Syria"]
[WhiteTeamCountry "BAN"]
[BlackTeamCountry "SYR"]
[TimeControl "40/5400+30:1800+30"]

{[%evp 15,135,14,16,8,34,35,50,26,24,17,49,36,107,35,150,28,117,40,127,60,107,56,58,60,71,66,66,66,79,71,95,71,84,70,83,72,91,69,85,51,59,47,54,25,59,32,42,25,25,25,25,25,25,25,25,25,12,-12,-12,-58,4,4,4,4,4,4,4,4,4,4,44,44,71,93,331,325,329,329,330,313,305,305,349,18,18,0,0,0,1233,1233,1200,1203,1042,991,983,175,145,107,441,15,15,15,126,62,29967,29969,29967,29969,29973,29974,29978,29976,29973,29973,29978,29975,29975,29976,29978,29979,29983,29984]} 1. e4 {[%emt 0:00:03]} e6 {[%emt 0:00:13]} 2. d4 {[%emt 0:00:04]} d5 {[%emt 0:00:07]} 3. Nc3 {[%emt 0:00:07]} Bb4 {[%emt 0:00:09]} 4. e5 {[%emt 0:00:17]} c5 {[%emt 0:00:33]} 5. a3 {[%emt 0:00:07]} Bxc3+ {[%emt 0:00:46]} 6. bxc3 {[%emt 0:00:07]} Qa5 {[%emt 0:00:39]} 7. Bd2 {[%emt 0:00:07]} Qa4 {[%emt 0:01:17]} 8. Qg4 {[%emt 0:00:07]} Kf8 {[%emt 0:02:42]} 9. Qd1 {[%emt 0:00:07] 9.h4 is more fashionable. C18: French: 3 Nc3 Bb4: Main line: 7 h4 and 7 Qg4.} Nc6 {[%emt 0:01:07]} 10. Nf3 {[%emt 0:00:56]} Nge7 {[%emt 0:02:15][%cal Rc5d4]} 11. Qb1 {[%emt 0:04:17] White is slightly better.} c4 {[%emt 0:06:59]} (11... cxd4 12. Bb5 Qa5 13. cxd4 $14) 12. Be2 {[%emt 0:03:05]} Nf5 {[%emt 0:03:14]} 13. O-O {[%emt 0:00:57] [#]} f6 $146 {[%emt 0:08:31]} (13... Nfe7 $14) ({Predecessor:} 13... h6 14. g4 Nfe7 15. Nh4 Qa5 16. Qe1 Qd8 17. f4 Ke8 18. f5 Kd7 19. Qg3 Qe8 {1-0 (37) Bauer,M (1872)-Reder,L (1822) Austria 2010}) 14. Re1 {[%emt 0:07:22]} (14. g4 $1 $16 {[%cal Rg4f5]} Nfe7 15. exf6 gxf6 16. g5) 14... Kf7 {[%emt 0:10:53]} (14... fxe5 $14 15. Nxe5 (15. dxe5 h6 $14) 15... Nxe5 16. dxe5 h6) 15. Bf1 {[%emt 0:08:17]} ({White should try} 15. g4 $1 $16 {[%cal Rg4f5]} Nfe7 16. exf6 gxf6 17. g5) 15... Qa5 {[%emt 0:02:29] [#]} (15... fxe5 $11 {remains equal.} 16. Nxe5+ Nxe5 17. Rxe5 Rf8) 16. a4 {[%emt 0:04:03]} (16. g4 $1 $16 {[%cal Rg4f5]} Nfe7 17. exf6 gxf6 18. g5) 16... Qc7 {[%emt 0:04:36] [#]} (16... fxe5 $14 17. g4 (17. dxe5 Rf8 $14) (17. Nxe5+ Nxe5 18. Rxe5 Nxd4 $11) 17... Nh6) 17. Qd1 {[%emt 0:07:44]} (17. g4 $1 $16 {[%cal Rg4f5]} Nfe7 18. exf6 gxf6 19. g5) 17... Rf8 {[%emt 0:07:58]} (17... fxe5 $14 {was preferrable.} 18. Nxe5+ Nxe5) 18. g3 {[%emt 0:08:05]} (18. g4 $16 Nfe7 19. exf6 gxf6 20. Bg2) 18... Kg8 {[%emt 0:11:34]} 19. exf6 {[%emt 0:06:02]} gxf6 {[%emt 0:01:03]} 20. Bf4 {[%emt 0:01:34]} Qf7 {[%emt 0:02:11]} 21. Bh3 {[%emt 0:05:13]} Ng7 {[%emt 0:02:14]} 22. Bg2 {[%emt 0:13:00]} Ne7 {[%emt 0:03:39]} 23. Bd6 {[%emt 0:02:39]} Re8 {[%emt 0:00:40]} 24. Nh4 {[%emt 0:02:21]} Nef5 {[%emt 0:02:03]} 25. Nxf5 {[%emt 0:00:07]} Nxf5 {[%emt 0:00:23]} 26. Qg4+ {[%emt 0:02:35]} Kh8 {[%emt 0:01:49]} 27. Bf4 {[%emt 0:02:17] White is much more active. The black rooks are badly placed.} Bd7 {[%emt 0:03:12]} 28. Qf3 {[%emt 0:00:43]} Bc6 {[%emt 0:04:27]} 29. Bh3 {[%emt 0:00:06]} Qg6 {[%emt 0:00:51]} 30. Qg4 {[%emt 0:03:43]} Rad8 {[%emt 0:03:57]} 31. Qxg6 {[%emt 0:00:11]} hxg6 {[%emt 0:00:10]} 32. a5 {[%emt 0:07:57]} Kg7 {[%emt 0:03:24]} 33. Bg4 {[%emt 0:06:27]} Kf7 {[%emt 0:02:09]} 34. h4 {[%emt 0:00:26]} Nd6 {[%emt 0:00:47]} 35. Bxd6 {[%emt 0:01:40]} Rxd6 {[%emt 0:00:07]} 36. Re3 {[%emt 0:01:15]} e5 {[%emt 0:01:11]} 37. Rae1 {[%emt 0:02:58]} (37. dxe5 $11 fxe5 38. Rd1) 37... exd4 {[%emt 0:00:52]} ({Better is} 37... e4 $15) 38. cxd4 $11 {[%emt 0:00:51]} Rxe3 {[%emt 0:00:42]} 39. fxe3 $15 {[%emt 0:00:05][%mdl 4096] Endgame KRB-KRB} f5 {[%emt 0:01:10]} 40. Bf3 {[%emt 0:00:16]} Kf6 {[%emt 0:01:22]} 41. Rb1 {[%emt 0:03:36]} Ke6 {[%emt 0:01:31]} 42. Kf2 {[%emt 0:01:27]} a6 {[%emt 0:01:40]} 43. c3 {[%emt 0:01:04]} Bb5 {[%emt 0:00:27]} 44. g4 {[%emt 0:05:38]} b6 $2 {[%emt 0:01:20]} (44... fxg4 $16 45. Bxg4+ Ke7) 45. gxf5+ {[%emt 0:04:09]} gxf5 {[%emt 0:00:08]} 46. axb6 {[%emt 0:00:07]} Rxb6 {[%emt 0:00:07]} 47. Kg3 {[%emt 0:01:03]} Rb7 {[%emt 0:00:31]} 48. Kf4 {[%emt 0:02:40]} Bc6 {[%emt 0:01:14]} 49. Rxb7 {[%emt 0:06:01]} (49. Rg1 $18) 49... Bxb7 $18 {[%emt 0:00:04] KB-KB} 50. h5 {[%emt 0:00:04][%cal Bh4h5,Bh5h6][%mdl 32] And now h6 would win.} a5 {[%emt 0:00:25] aiming for ...a4.} 51. Bd1 {[%emt 0:00:04] Hoping for Ba4.} Kf6 $2 {[%emt 0:00:36][%mdl 8192]} (51... Bc6 $11) 52. Ba4 {[%emt 0:03:35]} Bc8 {[%emt 0:02:01]} 53. h6 {[%emt 0:00:16]} Kg6 {[%emt 0:00:39]} 54. Ke5 {[%emt 0:00:05]} Bb7 {[%emt 0:00:24]} 55. Bb5 $2 {[%emt 0:01:02]} (55. Kd6 Kxh6 56. Kc7) 55... Kxh6 {[%emt 0:01:02]} 56. Kxf5 {[%emt 0:00:04]} Kh5 $2 {[%emt 0:00:14][%mdl 8192]} (56... Ba8 $16 {is a better chance.} 57. Bd7 Kh7) 57. Kf4 $2 {[%emt 0:03:25]} ({White has to play} 57. e4 $1 $18 {[%cal Re4e5] e5 would kill now.} dxe4 58. Bxc4) 57... Kg6 $11 {[%emt 0:02:12]} 58. e4 {[%emt 0:00:29] Black must now prevent exd5.} dxe4 {[%emt 0:00:13]} (58... Kf6 $11) 59. Bxc4 $16 {[%emt 0:00:05] Threatens to win with d5.} a4 $2 {[%emt 0:00:16][%mdl 8192]} (59... Kf6 $14) 60. d5 {[%emt 0:00:17] White mates.} e3 {[%emt 0:00:55]} 61. Kxe3 {[%emt 0:00:04]} Kf5 {[%emt 0:00:08]} 62. Kd4 {[%emt 0:00:10]} Kf6 {[%emt 0:02:06]} 63. Ba2 {[%emt 0:00:43]} Ke7 {[%emt 0:00:48]} 64. Kc5 {[%emt 0:00:09]} Kd7 {[%emt 0:00:26]} 65. c4 {[%emt 0:00:27][%cal Bc3c4,Bc4c5][%mdl 32]} Kc7 {[%emt 0:00:24]} 66. Kb4 {[%emt 0:00:15]} Kd6 {[%emt 0:00:23]} 67. c5+ {[%emt 0:00:48]} Ke5 {[%emt 0:00:39]} 68. Kxa4 {[%emt 0:00:08] Weighted Error Value: White=0.61/Black=0.59} 1-0